bitfinex-derivatives/quotes_SOLF0:USTF0_20240815
["timestamp","ask_amount","ask_price","bid_price","bid_amount"]
[1723757975920,0.04926307,141.41,141.39,0.05219797]
[1723757976123,1.7668,141.46,141.41,1.7674]
[1723757976317,1.7668,141.46,141.42,0.04699887]
[1723757976624,0.04920569,141.45,141.42,0.04699887]
[1723757976825,1.81610569,141.45,141.42,0.04699887]
[1723757977026,0.04920569,141.45,141.42,0.04699887]
[1723757979323,0.04920569,141.45,141.44,1.767]
[1723757979523,0.04920569,141.45,141.42,0.04699887]
[1723757979726,0.04920569,141.45,141.43,1.7671]
[1723757980123,0.04920569,141.45,141.42,0.04699887]
[1723757980528,0.04920569,141.45,141.44,1.767]
[1723757982422,0.84026945,141.5,141.44,1.767]
[1723757982827,1.7667,141.47,141.43,1.7672]
[1723757983033,0.84026945,141.5,141.43,1.7672]
[1723757983634,0.04914614,141.48,141.45,0.04788102]
[1723757984038,1.7668,141.47,141.45,0.04788102]
[1723757984334,0.04914614,141.48,141.45,0.04788102]
[1723757985924,0.04914614,141.48,141.39,40.68]
[1723757986124,0.84026945,141.5,141.41,1.7674]
[1723757986529,1.767,141.45,141.4,1.7675]
[1723757987030,0.04608996,141.44,141.41,0.04787496]
[1723757987436,0.04608996,141.44,141.41,1.81527496]
[1723757987834,0.04608996,141.44,141.41,0.04787496]
[1723757988739,0.04608996,141.44,141.42,1.7672]
[1723757989332,0.04608996,141.44,141.43,1.7672]
[1723757989534,0.04608996,141.44,141.41,0.04787496]
[1723757989940,0.04608996,141.44,141.42,1.7672]
[1723757990141,0.04608996,141.44,141.41,0.04787496]
[1723757990437,0.04608996,141.44,141.43,1.7672]
[1723757991233,0.04608996,141.44,141.43,35.6772]
[1723757991536,0.04608996,141.44,141.43,1.7672]
[1723757992734,0.04608996,141.44,141.41,0.04787496]
[1723757993538,0.04608996,141.44,141.42,1.7672]
[1723757993932,0.04608996,141.44,141.41,0.04787496]
[1723757994128,0.04608996,141.44,141.41,1.81527496]
[1723757994337,0.04608996,141.44,141.41,0.04787496]
[1723757994741,0.04608996,141.44,141.42,1.7672]
[1723757995632,0.04608996,141.44,141.41,1.81527496]
[1723757997135,0.04608996,141.44,141.42,1.7673]
[1723757998736,0.04608996,141.44,141.41,0.04787496]
[1723757998943,0.04608996,141.44,141.41,1.81527496]
[1723758000239,0.04608996,141.44,141.41,0.04787496]
[1723758000641,1.7673,141.42,141.41,0.04787496]
[1723758001238,0.04608996,141.44,141.41,0.04787496]
[1723758003943,1.81318996,141.44,141.41,0.04787496]
[1723758004549,0.04608996,141.44,141.42,1.7673]
[1723758004846,0.04608996,141.44,141.41,0.04787496]
[1723758005447,0.04608996,141.44,141.43,1.7672]
[1723758006051,0.04608996,141.44,141.41,0.04787496]
[1723758007051,1.81318996,141.44,141.41,0.04787496]
[1723758007747,0.04608996,141.44,141.41,0.04787496]
[1723758009448,1.81308996,141.44,141.41,0.04787496]
[1723758009651,0.04608996,141.44,141.41,0.04787496]
[1723758009854,1.7673,141.43,141.41,0.04787496]
[1723758010051,0.04608996,141.44,141.41,0.04787496]
[1723758010353,1.7673,141.42,141.41,0.04787496]
[1723758011558,1.7673,141.42,141.38,33.91]
[1723758012253,1.7673,141.42,141.38,35.6778]
[1723758012759,1.7672,141.43,141.39,0.04632728]
[1723758014647,1.7673,141.42,141.39,0.04632728]
[1723758015857,0.04608996,141.44,141.39,0.04632728]
[1723758016056,0.04608996,141.44,141.4,33.91]
[1723758016360,0.04608996,141.44,141.41,1.7673]
[1723758016561,0.04608996,141.44,141.4,33.91]
[1723758016856,0.04608996,141.44,141.41,1.7674]
[1723758017059,0.04608996,141.44,141.4,33.91]
[1723758017467,0.04608996,141.44,141.42,33.91]
[1723758017757,0.04608996,141.44,141.43,1.7672]
[1723758019466,0.04608996,141.44,141.42,35.72719091]
[1723758019762,0.04608996,141.44,141.42,33.95989091]
[1723758021355,0.04608996,141.44,141.42,35.72719091]
[1723758022961,0.04608996,141.44,141.42,33.95989091]
[1723758023760,0.04608996,141.44,141.42,35.72719091]
[1723758025057,0.04608996,141.44,141.42,33.95989091]
[1723758026563,0.04608996,141.44,141.42,0.04989091]
[1723758026757,0.04608996,141.44,141.42,1.81719091]
[1723758027265,0.04608996,141.44,141.43,33.91]
[1723758028861,0.04608996,141.44,141.43,35.6772]
[1723758029768,1.2218,141.49,141.43,33.91]
[1723758030069,1.2218,141.49,141.45,33.91]
[1723758030262,1.7667,141.47,141.45,33.91]
[1723758031055,1.7668,141.46,141.45,0.05215971]
[1723758031358,1.7668,141.46,141.4,33.91]
[1723758031557,0.04894711,141.47,141.4,33.91]
[1723758031757,1.81574711,141.47,141.42,1.7673]
[1723758032564,0.04894711,141.47,141.43,0.04686652]
[1723758033772,1.81564711,141.47,141.43,1.81396652]
[1723758033960,1.81564711,141.47,141.43,28.94396652]
[1723758034767,0.04894711,141.47,141.43,27.17686652]
[1723758035463,1.81564711,141.47,141.43,27.17686652]
[1723758036959,1.7668,141.46,141.43,27.17686652]
[1723758038272,1.81564711,141.47,141.43,28.94406652]
[1723758038766,1.81564711,141.47,141.43,27.17686652]
[1723758039567,1.7668,141.46,141.43,27.17686652]
[1723758040267,0.04894711,141.47,141.43,27.17686652]
[1723758040962,1.7669,141.46,141.43,27.17686652]
[1723758042264,1.81564711,141.47,141.43,27.17686652]
[1723758042464,0.04894711,141.47,141.43,27.17686652]
[1723758042665,0.04894711,141.47,141.44,8.66048355]
[1723758042962,0.04894711,141.47,141.43,28.94396652]
[1723758043365,0.04894711,141.47,141.44,8.66011451]
[1723758043573,0.04894711,141.47,141.43,28.94396652]
[1723758044072,0.04894711,141.47,141.44,8.66009054]
[1723758044274,0.04894711,141.47,141.43,28.94396652]
[1723758044467,0.04894711,141.47,141.44,8.65864283]
[1723758044663,0.04894711,141.47,141.44,1.767]
[1723758044870,0.04894711,141.47,141.43,27.17686652]
[1723758045176,0.04894711,141.47,141.44,8.65800107]
[1723758045472,0.04894711,141.47,141.45,8.65800107]
[1723758045677,0.04894711,141.47,141.44,1.767]
[1723758045870,0.04894711,141.47,141.45,8.65018893]
[1723758046071,0.04894711,141.47,141.43,28.94396652]
[1723758046272,0.04894711,141.47,141.44,8.6481303]
[1723758046569,0.04894711,141.47,141.45,8.6481303]
[1723758046775,0.04894711,141.47,141.44,1.767]
[1723758047273,0.04894711,141.47,141.45,8.64695067]
[1723758047476,0.04894711,141.47,141.44,1.767]
[1723758047872,0.04894711,141.47,141.45,8.65060121]
[1723758048074,0.04894711,141.47,141.44,1.767]
[1723758048573,0.04894711,141.47,141.43,27.17686652]
[1723758048877,0.04894711,141.47,141.44,8.65759294]
[1723758049076,1.81564711,141.47,141.45,8.65759294]
[1723758049285,1.81564711,141.47,141.43,27.17686652]
[1723758049286,0.04894711,141.47,141.43,27.17686652]
[1723758049472,0.04894711,141.47,141.44,8.65784039]
[1723758049669,0.04894711,141.47,141.43,27.17686652]
[1723758049969,0.04894711,141.47,141.44,8.66176335]
[1723758050178,0.04894711,141.47,141.43,0.04686652]
[1723758050478,0.04894711,141.47,141.44,8.66016648]
[1723758050679,1.81564711,141.47,141.43,1.81396652]
[1723758050882,1.81564711,141.47,141.44,8.66116069]
[1723758051074,1.81564711,141.47,141.43,1.81396652]
[1723758051276,1.81564711,141.47,141.44,8.65786182]
[1723758051476,1.81564711,141.47,141.43,1.81396652]
[1723758051984,1.81564711,141.47,141.44,8.66462278]
[1723758052275,1.81564711,141.47,141.43,1.81396652]
[1723758052581,1.81564711,141.47,141.44,8.66111897]
[1723758052881,1.7668,141.46,141.43,0.04686652]
[1723758053082,1.7668,141.46,141.44,8.64538175]
[1723758053378,1.81564711,141.47,141.43,1.81406652]
[1723758053569,0.04894711,141.47,141.44,8.64069465]
[1723758053775,0.04894711,141.47,141.45,8.64069465]
[1723758053982,1.81574711,141.47,141.43,10.89686652]
[1723758054185,1.81574711,141.47,141.44,8.63918467]
[1723758054371,1.81574711,141.47,141.43,10.89686652]
[1723758054579,1.81574711,141.47,141.44,8.63588175]
[1723758054776,1.81574711,141.47,141.43,12.66406652]
[1723758055075,1.81574711,141.47,141.44,8.63747487]
[1723758055277,1.81574711,141.47,141.43,12.66406652]
[1723758055480,1.81574711,141.47,141.44,8.63899076]
[1723758055679,1.81574711,141.47,141.43,12.66406652]
[1723758055879,1.81574711,141.47,141.44,8.63891508]
[1723758056075,1.81574711,141.47,141.43,12.66406652]
[1723758056274,1.81574711,141.47,141.44,8.63957]
[1723758056581,1.81574711,141.47,141.43,12.66406652]
[1723758056774,1.81574711,141.47,141.44,8.63386438]
[1723758056983,1.81574711,141.47,141.43,12.66406652]
[1723758057187,1.81574711,141.47,141.44,8.62409055]
[1723758057385,1.81574711,141.47,141.43,12.66406652]
[1723758057685,1.81574711,141.47,141.44,8.62741738]
[1723758057881,1.81574711,141.47,141.43,12.66406652]
[1723758058096,1.81574711,141.47,141.44,8.62899317]
[1723758058386,1.81574711,141.47,141.43,12.66406652]
[1723758058583,1.81574711,141.47,141.44,8.62934097]
[1723758058787,1.81574711,141.47,141.43,12.66406652]
[1723758058980,1.81574711,141.47,141.44,8.62767551]
[1723758059185,1.81574711,141.47,141.43,12.66406652]
[1723758059488,1.81574711,141.47,141.44,8.626288]
[1723758059689,1.81574711,141.47,141.43,12.66406652]
[1723758059886,1.81574711,141.47,141.44,8.61746194]
[1723758060188,1.81574711,141.47,141.43,12.66406652]
[1723758060584,1.7668,141.46,141.43,10.89686652]
[1723758060990,0.04894711,141.47,141.43,10.89686652]
[1723758061195,1.7668,141.46,141.43,10.89686652]
[1723758062087,1.767,141.45,141.43,0.04686652]
[1723758062288,0.04894711,141.47,141.44,8.62204612]
[1723758063691,1.7669,141.45,141.44,8.62204612]
[1723758064190,1.7669,141.45,141.43,0.04686652]
[1723758064708,1.7671,141.44,141.43,0.04686652]
[1723758066482,1.7671,141.44,141.37,3.57030665]
[1723758066692,20.0,141.32,141.2,7.38379279]
[1723758066885,54.25,141.21,140.94,11.62]
[1723758067086,43.4,141.05,140.9,28.26]
[1723758067396,68.73747998,141.04,140.9,28.26]
[1723758067708,1.7737,140.91,140.9,21.11148668]
[1723758067887,9.1924066,140.91,140.87,7.70512568]
[1723758068089,34.09,140.98,140.87,7.70512568]
[1723758068090,63.48852824,140.9,140.87,7.70512568]
[1723758068392,22.99552483,140.89,140.87,7.70512568]
[1723758068593,21.22152483,140.88,140.87,7.70512568]
[1723758068990,21.22152483,140.88,140.83,34.09]
[1723758068991,1.7743,140.87,140.83,34.09]
[1723758069300,42.26700341,140.88,140.87,11.62]
[1723758069488,42.26700341,140.88,140.83,62.39]
[1723758069489,51.40813527,140.86,140.83,39.1350388]
[1723758069696,68.63996376,140.85,140.84,11.62]
[1723758069993,68.63996376,140.85,140.81,34.09]
[1723758070193,26.37296035,140.84,140.83,0.04854039]
[1723758070493,68.69047114,140.84,140.83,0.04854039]
[1723758071391,0.05050738,140.84,140.83,0.04854039]
[1723758074598,1.82510738,140.84,140.83,0.04854039]
[1723758075501,34.07,140.87,140.73,1.776]
[1723758075894,1.7752,140.8,140.73,1.776]
[1723758076099,3.50473176,140.84,140.72,47.4861]
[1723758076393,3.50473176,140.84,140.72,34.07]
[1723758076394,1.7754,140.78,140.72,34.07]
[1723758076598,1.7754,140.78,140.77,0.04799867]
[1723758076902,0.04469088,140.79,140.76,0.05281962]
[1723758077101,1.7755,140.77,140.72,33.05684467]
[1723758077301,1.7755,140.77,140.72,32.31735138]
[1723758080500,12.04626857,140.76,140.73,0.05186206]
[1723758083406,12.0,140.75,140.73,0.05186206]
[1723758087108,12.0,140.75,140.71,0.76181436]
[1723758087406,12.0,140.75,140.66,11.26]
[1723758087610,12.0,140.74,140.69,34.07]
[1723758087808,12.0,140.74,140.72,1.776]
[1723758088011,12.0,140.73,140.72,1.776]
[1723758088214,12.0,140.73,140.72,1.82158747]
[1723758089916,12.0,140.73,140.72,0.04558747]
[1723758091916,0.04834792,140.74,140.72,0.04558747]
[1723758093517,0.04834792,140.74,140.72,1.82168747]
[1723758095116,0.04834792,140.74,140.72,0.04558747]
[1723758097024,0.04834792,140.74,140.71,1.7762]
[1723758097025,0.04834792,140.74,140.71,0.96884687]
[1723758097322,0.04834792,140.74,140.69,34.07]
[1723758097822,12.04834792,140.74,140.71,1.7761]
[1723758098222,12.04834792,140.74,140.71,1.82685096]
[1723758100819,12.04834792,140.74,140.72,1.776]
[1723758103818,12.0,140.73,140.72,1.776]
[1723758107032,12.0,140.73,140.72,1.13622864]
[1723758107232,12.0,140.73,140.71,0.05075096]
[1723758107837,12.0,140.73,140.72,1.776]
[1723758109938,0.04834792,140.74,140.72,1.776]
[1723758113640,0.04834792,140.74,140.71,0.05075096]
[1723758113641,0.04834792,140.74,140.73,1.776]
[1723758115638,10.224,140.73,140.71,0.05075096]
[1723758116842,10.224,140.73,140.72,1.7761]
[1723758117236,0.04834792,140.74,140.69,8.82556941]
[1723758117437,27.27,140.78,140.69,8.33078298]
[1723758117837,27.27,140.78,140.66,27.27]
[1723758118033,1.7757,140.75,140.7,1.7763]
[1723758118440,0.04894764,140.74,140.71,0.04656328]
[1723758118937,0.04894764,140.74,140.71,1.82276328]
[1723758121646,8.17723672,140.71,140.67,9.26]
[1723758121846,7.17723672,140.7,140.67,9.26]
[1723758122249,7.17723672,140.7,140.69,1.7765]
[1723758127149,7.17723672,140.7,140.69,1.13661263]
[1723758127556,0.05227301,140.71,140.7,1.7763]
[1723758132062,14.49482262,140.84,140.74,10.92]
[1723758132261,1.314,140.87,140.77,10.92]
[1723758132262,14.45930173,140.85,140.77,10.92]
[1723758132569,1.314,140.87,140.79,10.92]
[1723758132759,3.57040998,140.89,140.8,10.92]
[1723758132961,16.26440998,140.89,140.83,1.7746]
[1723758133360,0.04642368,140.87,140.82,19.82]
[1723758133556,0.04642368,140.87,140.85,0.04629276]
[1723758135067,0.04642368,140.87,140.84,12.07514666]
[1723758135668,0.04642368,140.87,140.86,1.7743]
[1723758148068,3.8506,140.97,140.86,27.25]
[1723758148270,3.8506,140.97,140.89,27.25]
[1723758148490,3.8506,140.97,140.89,35.41]
[1723758148667,1.7732,140.96,140.9,1.7738]
[1723758149268,1.7732,140.96,140.92,0.05140866]
[1723758149465,0.05141984,140.94,140.92,0.05140866]
[1723758150473,1.7734,140.93,140.92,0.05140866]
[1723758150674,0.05141984,140.94,140.87,8.16]
[1723758150877,1.7737,140.92,140.87,8.16]
[1723758151377,1.7737,140.92,140.87,9.9342]
[1723758151676,0.04747858,140.91,140.88,0.05180414]
[1723758155176,27.25,140.9,140.75,28.42]
[1723758155370,3.56270402,140.91,140.79,27.25]
[1723758155570,27.25,140.9,140.79,27.25]
[1723758155877,1.774,140.89,140.83,1.7746]
[1723758156072,1.774,140.89,140.79,27.25]
[1723758156277,0.0492051,140.87,140.85,0.04948286]
[1723758156487,1.7739,140.9,140.85,1.7744]
[1723758156672,0.05208816,140.87,140.85,1.82474783]
[1723758156877,27.25,140.92,140.85,0.05034783]
[1723758157280,0.04794401,140.9,140.85,0.05034783]
[1723758157481,0.04794401,140.9,140.86,1.7742]
[1723758157780,0.04794401,140.9,140.85,0.05034783]
[1723758157977,1.82184401,140.9,140.85,1.82474783]
[1723758159081,1.774,140.89,140.85,1.82474783]
[1723758160981,1.7741,140.88,140.85,0.05034783]
[1723758163780,1.774,140.89,140.85,0.05034783]
[1723758165678,1.774,140.89,140.85,1.82474783]
[1723758165878,0.04794401,140.9,140.85,0.05034783]
[1723758166381,10.94794401,140.9,140.85,0.05034783]
[1723758166581,1.774,140.89,140.85,0.05034783]
[1723758167183,1.7741,140.88,140.85,0.05034783]
[1723758167376,10.94794401,140.9,140.85,0.05034783]
[1723758168581,1.774,140.89,140.85,1.82474783]
[1723758170880,1.7741,140.88,140.85,0.05034783]
[1723758171085,10.94794401,140.9,140.85,0.05034783]
[1723758172182,1.774,140.89,140.85,1.82474783]
[1723758173888,1.7743,140.86,140.85,0.05034783]
[1723758174091,10.9,140.89,140.85,0.05034783]
[1723758174484,0.05118888,140.88,140.85,0.05034783]
[1723758176090,1.7742,140.87,140.85,0.05034783]
[1723758188398,1.7744,140.86,140.8,10.9]
[1723758188791,1.7744,140.86,140.82,1.7748]
[1723758189192,5.3593083,140.86,140.82,1.7748]
[1723758189499,0.04822928,140.85,140.82,1.7748]
[1723758191101,1.82272928,140.85,140.82,1.7748]
[1723758192302,0.04822928,140.85,140.82,1.7748]
[1723758213215,0.04822928,140.85,140.83,1.7747]
[1723758214416,0.04822928,140.85,140.81,10.9]
[1723758214417,0.04822928,140.85,140.84,1.7746]
[1723758214617,0.04822928,140.85,140.81,10.9]
[1723758215115,0.04822928,140.85,140.82,10.9]
[1723758215615,0.04822928,140.85,140.83,1.7747]
[1723758217211,0.04822928,140.85,140.84,1.7746]
[1723758218118,0.04822928,140.85,140.84,12.6746]
[1723758219521,1.7739,140.9,140.86,1.7743]
[1723758219722,1.7739,140.9,140.86,12.72252928]
[1723758220119,1.7737,140.91,140.87,1.7742]
[1723758220519,81.55405354,140.93,140.86,0.04822928]
[1723758220721,0.04576042,140.9,140.86,0.04822928]
[1723758220925,1.81966042,140.9,140.86,1.82242928]
[1723758221833,1.81966042,140.9,140.87,1.7742]
[1723758223129,0.04576042,140.9,140.88,1.774]
[1723758223330,0.04576042,140.9,140.86,0.04822928]
[1723758223834,0.04576042,140.9,140.87,1.7742]
[1723758224936,1.81966042,140.9,140.86,1.82252928]
[1723758225133,1.81966042,140.9,140.86,12.72252928]
[1723758225435,1.81966042,140.9,140.86,10.94822928]
[1723758226740,1.81966042,140.9,140.87,1.7742]
[1723758226935,0.04576042,140.9,140.87,1.7742]
[1723758228548,1.81956042,140.9,140.87,1.7742]
[1723758232145,1.81956042,140.9,140.86,12.72252928]
[1723758232446,1.81956042,140.9,140.86,1.82252928]
[1723758233649,1.81956042,140.9,140.87,1.7742]
[1723758235737,1.81956042,140.9,140.86,1.82252928]
[1723758240150,1.774,140.89,140.86,1.82252928]
[1723758240963,1.774,140.89,140.86,0.04822928]
[1723758242757,1.774,140.89,140.86,1.82252928]
[1723758243451,1.81956042,140.9,140.86,1.82252928]
[1723758244845,0.04576042,140.9,140.86,10.94822928]
[1723758246770,0.04576042,140.9,140.87,1.7741]
[1723758249960,0.04576042,140.9,140.87,12.6741]
[1723758251464,0.04576042,140.9,140.87,10.9]
[1723758252860,0.04576042,140.9,140.88,1.774]
[1723758257266,0.04576042,140.9,140.89,1.774]
[1723758263171,0.04576042,140.9,140.89,12.674]
[1723758267974,0.04576042,140.9,140.89,1.774]
[1723758269870,77.41758241,140.98,140.92,10.9]
[1723758269871,70.95758241,140.98,140.92,10.9]
[1723758270078,3.55262124,140.99,140.93,10.9]
[1723758270279,10.9,141.01,140.93,17.34]
[1723758270873,0.04610845,140.98,140.96,0.04679956]
[1723758273879,0.04610845,140.98,140.97,10.9]
[1723758274680,0.04610845,140.98,140.97,12.6729]
[1723758279978,1.7723,141.03,140.98,1.7728]
[1723758280182,1.7723,141.03,140.98,12.6728]
[1723758281182,0.0518511,141.02,140.99,0.04518209]
[1723758282581,0.0518511,141.02,140.99,1.81788209]
[1723758283178,0.0518511,141.02,141.0,1.7726]
[1723758285682,24.76185021,141.14,141.0,10.9]
[1723758285985,13.9417,141.13,141.05,10.9]
[1723758286281,70.62284582,141.15,141.05,10.9]
[1723758286580,42.26501883,141.25,141.04,6.44]
[1723758286581,27.57259963,141.26,141.12,10.9]
[1723758286779,1.7704,141.18,141.13,1.7708]
[1723758286980,5.33387156,141.18,141.13,1.7708]
[1723758287183,0.05029057,141.17,141.14,0.05452]
[1723758287380,0.05029057,141.17,141.14,1.82522]
[1723758289186,0.05029057,141.17,141.14,0.05452]
[1723758290378,1.82079057,141.17,141.14,0.05452]
[1723758291182,1.82079057,141.17,141.06,1.5824]
[1723758291383,1.7705,141.17,141.11,10.9]
[1723758291584,3.51383609,141.2,141.13,10.9]
[1723758291783,7.9924,141.21,141.08,6.42]
[1723758291984,7.9924,141.21,141.14,10.9]
[1723758292189,1.7703,141.19,141.14,12.6707]
[1723758292490,1.81651453,141.19,141.16,0.05113087]
[1723758292985,0.04621453,141.19,141.18,10.9]
[1723758294184,0.04621453,141.19,141.18,12.6703]
[1723758295988,0.04621453,141.19,141.18,1.7703]
[1723758301790,0.04621453,141.19,141.17,1.7704]
[1723758301990,0.04621453,141.19,141.16,10.95113087]
[1723758302390,0.04621453,141.19,141.18,1.7703]
[1723758303193,0.04621453,141.19,141.16,1.82163087]
[1723758303394,0.04621453,141.19,141.16,10.95113087]
[1723758305601,0.04621453,141.19,141.18,1.7703]
[1723758310506,0.04621453,141.19,141.17,1.7704]
[1723758310707,0.04621453,141.19,141.18,10.9]
[1723758310906,0.04621453,141.19,141.16,0.05113087]
[1723758311207,0.04621453,141.19,141.17,10.9]
[1723758311504,0.04621453,141.19,141.17,12.6704]
[1723758311702,0.04621453,141.19,141.17,10.9]
[1723758311896,0.04621453,141.19,141.16,0.05113087]
[1723758313600,1.7703,141.18,141.16,0.05113087]
[1723758313807,0.04621453,141.19,141.16,0.05113087]
[1723758314002,1.81651453,141.19,141.16,0.05113087]
[1723758315308,0.04621453,141.19,141.12,1.771]
[1723758315500,2.9529,141.18,141.08,6.42]
[1723758315705,2.9529,141.18,141.1,10.9]
[1723758315909,1.7708,141.14,141.1,12.6712]
[1723758316398,3.57404965,141.15,141.12,10.9]
[1723758316598,2.9529,141.18,141.12,10.9]
[1723758316599,0.04476116,141.13,141.12,10.9]
[1723758317002,3.60697878,141.15,141.12,10.9]
[1723758317203,0.05427741,141.14,141.12,10.9]
[1723758318816,1.82507741,141.14,141.12,10.9]
[1723758319207,0.05427741,141.14,141.11,0.05006055]
[1723758320811,0.05427741,141.14,141.11,0.05006055]
[1723758321012,1.7709,141.13,141.11,0.05006055]
[1723758321209,0.05427741,141.14,141.11,0.05006055]
[1723758322317,1.82517741,141.14,141.11,0.05006055]
[1723758323616,0.05427741,141.14,141.11,1.82126055]
[1723758323819,0.05427741,141.14,141.11,0.05006055]
[1723758324117,0.05427741,141.14,141.11,10.95006055]
[1723758324509,1.82517741,141.14,141.11,10.95006055]
[1723758325506,0.05427741,141.14,141.11,10.95006055]
[1723758325710,9.3893,141.22,141.13,10.9]
[1723758325918,9.3893,141.22,141.08,6.42]
[1723758326117,1.7703,141.18,141.16,10.9]
[1723758326825,1.7703,141.18,141.14,10.9]
[1723758327013,1.7703,141.18,141.16,0.04744632]
[1723758327234,1.818796,141.18,141.16,0.04744632]
[1723758327715,0.048496,141.18,141.16,1.81794632]
[1723758327917,0.048496,141.18,141.16,0.04744632]
[1723758328615,1.818896,141.18,141.16,0.04744632]
[1723758328813,0.048496,141.18,141.16,0.04744632]
[1723758329813,1.7704,141.17,141.16,0.04744632]
[1723758333417,1.818796,141.18,141.16,0.04744632]
[1723758334623,1.7704,141.17,141.16,0.04744632]
[1723758337920,0.048496,141.18,141.16,10.94744632]
[1723758338327,0.048496,141.18,141.16,12.71794632]
[1723758340028,0.048496,141.18,141.17,1.7704]
[1723758340328,0.048496,141.18,141.16,10.94744632]
[1723758340521,10.9,141.25,141.16,10.94744632]
[1723758340715,10.9,141.25,141.18,10.9]
[1723758341019,14.40864789,141.25,141.16,1.7705]
[1723758341219,14.40864789,141.25,141.17,10.9]
[1723758341622,0.05197715,141.22,141.2,0.04565359]
[1723758342025,1.77,141.21,141.2,0.04565359]
[1723758353927,0.05197715,141.22,141.2,0.04565359]
[1723758354534,1.7699,141.21,141.2,0.04565359]
[1723758356954,1.82177715,141.22,141.2,0.04565359]
[1723758358639,1.7699,141.21,141.2,0.04565359]
[1723758363849,1.82177715,141.22,141.2,0.04565359]
[1723758370741,0.05197715,141.22,141.2,0.04565359]
[1723758372843,1.82177715,141.22,141.2,0.04565359]
[1723758382757,0.05197715,141.22,141.2,0.04565359]
[1723758383149,1.82177715,141.22,141.2,0.04565359]
[1723758383862,0.05197715,141.22,141.2,0.04565359]
[1723758387668,12.51858333,141.34,141.2,0.04565359]
[1723758387963,10.9,141.27,141.2,0.04565359]
[1723758388163,1.7696,141.24,141.2,0.04565359]
[1723758388662,0.04992337,141.23,141.2,0.04565359]
[1723758389854,1.81962337,141.23,141.2,0.04565359]
[1723758391665,1.81962337,141.23,141.18,10.9]
[1723758391666,10.9,141.21,141.16,6.38]
[1723758391872,10.9,141.21,140.96,5.319]
[1723758391873,14.50029342,141.2,141.13,10.9]
[1723758392065,10.9,141.2,141.13,10.9]
[1723758392365,1.7702,141.19,141.12,10.9]
[1723758392768,1.7702,141.19,141.14,1.7707]
[1723758392969,0.05393002,141.17,141.14,1.82342213]
[1723758396967,0.05393002,141.17,141.15,1.7707]
[1723758398866,0.05393002,141.17,141.15,12.6707]
[1723758400871,64.25806788,141.32,141.15,10.9]
[1723758401181,10.9,141.25,141.17,10.9]
[1723758401368,1.7699,141.22,141.16,1.5323]
[1723758401672,1.7699,141.22,141.17,10.9]
[1723758402073,0.04635934,141.21,141.18,0.05127048]
[1723758402667,0.04635934,141.21,141.18,1.82157048]
[1723758403371,10.9,141.19,141.03,38.93968607]
[1723758403568,10.9,141.1,141.0,10.9]
[1723758403881,10.9,141.06,140.97,3.62548802]
[1723758404178,10.9,141.06,140.97,1.7729]
[1723758404179,1.7722,141.03,140.97,1.7729]
[1723758404580,0.05288921,141.01,140.99,0.05245034]
[1723758406679,1.7726,141.0,140.99,0.05245034]
[1723758407677,12.6726,141.0,140.99,0.05245034]
[1723758408179,1.7726,141.0,140.99,0.05245034]
[1723758408982,1.7729,140.98,140.93,1.5025]
[1723758409776,27.25,140.99,140.88,27.25]
[1723758410191,0.04824632,140.95,140.92,0.05341023]
[1723758410402,1.82154632,140.95,140.92,0.05341023]
[1723758410684,0.04824632,140.95,140.92,0.05341023]
[1723758410880,1.82144632,140.95,140.92,0.05341023]
[1723758411691,1.7733,140.94,140.92,0.05341023]
[1723758412384,1.7734,140.93,140.92,0.05341023]
[1723758413276,128.4906655,141.19,140.92,0.05341023]
[1723758413480,128.4906655,141.19,140.9,27.25]
[1723758413481,3.0312,141.01,140.9,27.25]
[1723758413678,30.2812,141.01,140.9,27.25]
[1723758413879,6.32,141.0,140.9,29.0238]
[1723758414086,9.87044582,141.0,140.9,29.0238]
[1723758414510,1.82430852,140.96,140.94,0.0469157]
[1723758418878,1.7732,140.95,140.94,0.0469157]
[1723758423388,1.82420852,140.96,140.94,0.0469157]
[1723758431101,0.05110852,140.96,140.94,0.0469157]
[1723758433302,0.05110852,140.96,140.94,1.8202157]
[1723758436902,0.05110852,140.96,140.94,0.0469157]
[1723758439303,1.82430852,140.96,140.94,0.0469157]
[1723758440010,0.05110852,140.96,140.94,0.0469157]
[1723758441704,1.82420852,140.96,140.94,0.0469157]